Cogmind - Beta 13 @@@ ROGUE MODE // 2024.05.28 @ 01:09:47 Player: Heliostats Result: Destroyed self with Grenade Launcher Performance ------------- Evolutions (0) 0 Regions Visited (2) 400 Robots Destroyed (23) 115 Value Destroyed (483) 483 Prototype IDs (2) 40 Alien Tech Used (0) 0 Bonus (0) 0 TOTAL SCORE: 1038 Bonus ------- None Cogmind --------- Core Integrity 0/250 Matter 73/300 Energy 125/125 System Corruption 1% Temperature Cool (0) Movement Hovering (60) Location -10/Subcaves Parts ------- > --- POWER (1) -------- Light Ion Engine > --- PROPULSION (2) --- Hover Unit > --- UTILITY (2) ------ Weight Redist. System ECM Suite > --- WEAPON (2) ------- Grenade Launcher > --- INVENTORY (5) ---- Small Storage Unit Light Assault Rifle Light Assault Rifle Peak State ------------ > --- POWER ------------ Ion Engine > --- PROPULSION ------- Hover Unit Hover Unit > --- UTILITY ---------- Small Storage Unit Weight Redist. System > --- WEAPON ----------- Light Assault Rifle Light Assault Rifle > --- INVENTORY -------- ECM Suite Grenade Launcher Grenade Launcher [Rating: 8] Favorites ----------- Power Light Ion Engine Engine Light Ion Engine Propulsion Aluminum Leg Leg Aluminum Leg Hover Unit Hover Unit Flight Unit Flight Unit Utility Small Storage Unit Device Sensor Array Storage Small Storage Unit Weapon Light Assault Rifle Energy Gun EM Pulse Gun Ballistic Gun Light Assault Rifle Launcher Grenade Launcher Build | -11 -10 -10 ------- Run | Yrd Mat Sub Slots Evolved . | . . . Power . | . . . Propulsion . | . . . Utility . | . . . Weapon . | . . . Parts Attached 30 | 6 24 . Power 5 | 1 4 . Engine 5 | 1 4 . Core . | . . . Reactor . | . . . Propulsion 11 | 2 9 . Treads . | . . . Leg 6 | 2 4 . Wheel . | . . . Hover 2 | . 2 . Flight 3 | . 3 . Utility 4 | 1 3 . Device 3 | . 3 . Storage 1 | 1 . . Processor . | . . . Hackware . | . . . Protection . | . . . Artifact . | . . . Weapon 10 | 2 8 . Energy Gun 3 | 2 1 . Energy Cannon . | . . . Ballistic Gun 4 | . 4 . Ballistic Cannon . | . . . Launcher 3 | . 3 . Special Weapon . | . . . Impact Weapon . | . . . Slashing Weapon . | . . . Piercing Weapon . | . . . Special Melee Weapon . | . . . Unidentified Prototypes . | . . . Parts Lost 12 | . 12 . Power 2 | . 2 . Propulsion 3 | . 3 . Utility 1 | . 1 . Weapon 6 | . 6 . Highest Loss Streak 7 | . 7 . To Critical Strikes . | . . . Average Slot Usage (%) 93 | . 93 . Engine 12 | . 12 . Leg 20 | . 20 . Hover 5 | . 5 . Device 14 | . 14 . Storage 11 | . 11 . Energy Gun 7 | . 7 . Ballistic Gun 14 | . 14 . Launcher 4 | . 4 . Naked Turns . | . . . Heaviest Build 13 | 12 13 8 Greatest Support 20 | 20 20 12 Greatest Overweight (x) 4 | . 4 . Average Overweight (x) . | . . . Largest Inventory Capacity 8 | 8 8 5 Average Capacity 7 | 6 7 5 Most Carried 7 | 4 7 3 Average Carried 2 | 1 2 3 Final Capacity 8 | 8 5 5 Final Carried 3 | 1 3 3 Class Distribution -------------------- 100% | Mutant Dominant Class ---------------- Mutant | -10/Materials Mutant | -10/Subcaves Resources | -11 -10 -10 ----------- Run | Yrd Mat Sub Matter Collected 506 | 256 250 . Remotely . | . . . Salvage Created 499 | . 499 . Parts 45 | . 45 . Haulers Intercepted 1 | . 1 . Recyclers Shooed 1 | . 1 . Parts Field Recycled . | . . . Retrieved Matter . | . . . Parts Self-Destructed . | . . . Prevented . | . . . Kills | -11 -10 -10 ------- Run | Yrd Mat Sub Combat Hostiles Destroyed 16 | . 16 . Guns 13 | . 13 . AOE 3 | . 3 . Classes Destroyed 8 | . 8 . Worker 1 | . 1 . Builder 1 | . 1 . Tunneler 1 | . 1 . Hauler 1 | . 1 . Operator 1 | . 1 . Watcher 2 | . 2 . Swarmer 6 | . 6 . Grunt 10 | . 10 . Best Kill Streak 10 | . 10 . Combat Bots Only 8 | . 8 . Max Kills in Single Turn 3 | . 3 . Gunslinging . | . . . Exploded 2 | . 2 . Melee . | . . . Uniques/NPCs Destroyed . | . . . Combat | -11 -10 -10 -------- Run | Yrd Mat Sub Hostile Shots Fired 132 | . 132 . Missed 27 | . 27 . Damage Taken 1301 | . 1274 27 Core 254 | . 236 18 Absorbed by Shields . | . . . Core Remaining (%) 100 | 100 . . Volleys Fired 96 | . 95 1 Largest 2 | . 2 1 Hottest 80 | . 80 30 Shots Fired 156 | . 155 1 Gun 138 | . 138 . Cannon . | . . . Launcher 18 | . 17 1 Special . | . . . Kinetic 103 | . 103 . Thermal 5 | . 5 . Explosive 18 | . 17 1 Electromagnetic 30 | . 30 . Robot Hit Streak 7 | . 7 . Robot Miss Streak 5 | . 5 . Penetration Max . | . . . Secondary Targets 2 | . 2 . Max Gunslinging Chain 1 | . 1 . Shots Hit Robots 76 | . 76 . Core Hits 44 | . 44 . Critical Kills . | . . . Critical Parts Destroyed . | . . . Critical Strikes . | . . . Melee Attacks . | . . . Impact . | . . . Slashing . | . . . Piercing . | . . . Sneak Attacks . | . . . Combat Hostiles . | . . . Follow-up Attacks . | . . . Damage Inflicted 1215 | . 1215 . Guns 705 | . 705 . Cannons . | . . . Explosions 510 | . 510 . Melee . | . . . Ramming . | . . . Kinetic 422 | . 422 . Thermal 42 | . 42 . Explosive 510 | . 510 . Electromagnetic 241 | . 241 . Impact . | . . . Slashing . | . . . Piercing . | . . . Highest Corruption 1 | . 1 1 Average Corruption 1 | . 1 1 Corruption Purged . | . . . Corruption Blocked . | . . . Effects 2 | . 2 . Energy Discharges 1 | . 1 . Data Loss (minor) 1 | . 1 . Overload Shots . | . . . Overflow Damage 20 | . 20 . Projectiles . | . . . Explosions 20 | . 20 . Melee . | . . . Knockbacks . | . . . Impact . | . . . Kinetic . | . . . Secondary . | . . . Self-Inflicted Damage 224 | . 197 27 Shots 9 | . 8 1 Rammed . | . . . Targets Rammed . | . . . Kicked . | . . . Crushed . | . . . Highest Temperature 204 | . 204 . Average Temperature 50 | . 50 . Received Heat Transfer 474 | . 474 . Siege Activations . | . . . Robots Corrupted . | . . . Combat Hostiles . | . . . Parts Fried 1 | . 1 . Impact Corruptions . | . . . Robots Melted . | . . . Combat Hostiles . | . . . Parts Melted . | . . . Heat Transferred 100 | . 100 . Parts Sabotaged . | . . . Parts Stolen . | . . . Parts Stripped . | . . . Power Chain Reactions . | . . . Alert | -11 -10 -10 ------- Run | Yrd Mat Sub Peak Influence 278 | . 278 . Initial . | . . . Average 94 | . 97 . Maximum Alert Level 1 | . 1 . Low Security (%) 85 | 100 85 . Level 1 14 | . 14 . Level 2 . | . . . Level 3 . | . . . Level 4 . | . . . Level 5 . | . . . High Security . | . . . Max Security . | . . . Squads Dispatched 4 | . 4 . Investigation 3 | . 3 . Extermination . | . . . Reinforcement 1 | . 1 . Assault . | . . . Garrison . | . . . Intercept . | . . . Searches Triggered . | . . . Construction Impeded . | . . . Haulers Reinforced . | . . . Active Scanning Responses . | . . . Cargo Convoy Interrupts . | . . . Stealth | -11 -10 -10 --------- Run | Yrd Mat Sub Distress Signals 2 | . 2 . Communications Jammed . | . . . Distress Signals . | . . . Times Spotted 29 | . 29 . Peak Tracking Total 8 | . 8 . Tactical Retreats . | . . . Traps | -11 -10 -10 ------- Run | Yrd Mat Sub Traps Triggered 1 | . 1 . Indirectly . | . . . Trap Hack Attempts . | . . . Triggered . | . . . Disarmed . | . . . Reprogrammed . | . . . Reused . | . . . Traps Extracted . | . . . Installed . | . . . Triggered 1 | . 1 . Machines | -11 -10 -10 ---------- Run | Yrd Mat Sub Machines Disabled 2 | . 2 . Max in Single Turn 1 | . 1 . Machines Repaired . | . . . Machines Dismantled . | . . . Machines Sabotaged . | . . . Overloaded Fab Kills . | . . . Hacking | -11 -10 -10 --------- Run | Yrd Mat Sub Machines Accessed 8 | . 8 . Terminals 6 | . 6 . Fabricators . | . . . Repair Stations . | . . . Recycling Units 2 | . 2 . Scanalyzers . | . . . Garrison Access . | . . . Total Hacks 21 | . 21 . Successful 11 | . 11 . Failed 10 | . 10 . Catastrophic 3 | . 3 . Database Lockouts . | . . . Manual . | . . . Terminals 16 | . 16 . Fabricators . | . . . Repair Stations . | . . . Recycling Units 5 | . 5 . Scanalyzers . | . . . Garrison Access . | . . . Terminal Hacks 7 | . 7 . Prototype ID Bank 1 | . 1 . Emergency Access Points 2 | . 2 . Locate Traps 1 | . 1 . Transport Status 1 | . 1 . Registered Prototypes 1 | . 1 . Zone Layout 1 | . 1 . Fabricator Hacks . | . . . Repair Station Hacks . | . . . Recycling Unit Hacks 4 | . 4 . Report Inventory 2 | . 2 . Retrieve Components 2 | . 2 . Scanalyzer . | . . . Garrison Access Hacks . | . . . Unauthorized Hacks . | . . . Terminals . | . . . Fabricators . | . . . Repair Stations . | . . . Recycling Units . | . . . Scanalyzers . | . . . Garrison Access . | . . . Data Cores Recovered 1 | . 1 . Used 1 | . 1 . Hacking Detections 5 | . 5 . Full Trace Events 5 | . 5 . Feedback Events 1 | . 1 . Corruption 1 | . 1 . Feedback Blocked . | . . . Robot Schematics Acquired . | . . . Robots Built . | . . . Authchips . | . . . Time . | . . . Total Robot Build Rating . | . . . Part Schematics Acquired . | . . . Parts Built . | . . . Authchips . | . . . Time . | . . . Total Part Build Rating . | . . . Parts Repaired . | . . . Time . | . . . Parts Recycled . | . . . Recycled Matter . | . . . Retrieved Matter . | . . . Retrieved Components 10 | . 10 . Parts Scanalyzed . | . . . Part Schematics Acquired . | . . . Parts Damaged . | . . . Bothacking | -11 -10 -10 ------------ Run | Yrd Mat Sub Used RIF Installer . | . . . Robots Hacked . | . . . Non-combat . | . . . Combat . | . . . Robot Hacks Applied . | . . . Relay Couplers Released . | . . . Fabnet Peak Effective % . | . . . Robots Rewired . | . . . Allies Hacked . | . . . Hacks Repelled . | . . . Allies | -11 -10 -10 -------- Run | Yrd Mat Sub Total Allies . | . . . Largest Group . | . . . Highest-Rated Group . | . . . Highest-Rated Ally . | . . . Total Orders . | . . . Ally Attacks . | . . . Total Damage . | . . . Kills . | . . . Allies Corrupted . | . . . Allies Melted . | . . . Intel | -11 -10 -10 ------- Run | Yrd Mat Sub Robot Analysis Total . | . . . Derelict Logs Recovered . | . . . Drone Launches . | . . . Drone Recoveries . | . . . Exploration | -11 -10 -10 ------------- Run | Yrd Mat Sub Turns Passed 1171 | 46 1123 2 Spaces Moved 672 | 37 633 2 Core 24 | 15 9 . Treads . | . . . Legs 448 | 22 426 . Wheels . | . . . Hover 193 | . 191 2 Flight 7 | . 7 . Fastest Speed 37 | 50 37 60 Average Speed 102 | 91 103 60 Slowest Speed 250 | 120 250 60 Overloaded Moves . | . . . Propulsion Burnouts . | . . . Robots Hopped . | . . . Cave-ins Triggered . | . . . Exploration Rate (%) 32 | 3 91 2 Regions Visited 2 Branch Regions 1 Pre-discovered Areas . | . . . Known Exits Taken . | . . . Unknown Exits Taken 2 | 1 1 . Scrap Searched . | . . . Spaces Dug 9 | . 9 . Terrain Destroyed 82 | . 78 4 Melee . | . . . Projectile . | . . . AOE 82 | . 78 4 Terrain Rammed . | . . . Walls Destroyed . | . . . Machines Disabled . | . . . Actions | -11 -10 -10 --------- Run | Yrd Mat Sub Total 1021 | 49 969 3 Wait 184 | . 184 . Move 670 | 36 632 2 Hop . | . . . Pick Up 30 | 7 23 . Fast Attach . | . . . Attach 24 | 6 18 . Detach 1 | . 1 . Swap 6 | . 6 . Drop 10 | . 10 . Fire 96 | . 95 1 Melee . | . . . Ram . | . . . Kick . | . . . Crush . | . . . Escape Stasis . | . . . Rewire . | . . . Trap . | . . . Miscellaneous . | . . . Route ------- -11/Scrapyard -10/Materials (discovered 5 exits: [*Mat x3] / [*Min] / [*Sub]) -10/Subcaves (discovered 1 exit: [*Mat]) History --------- Turn | Location | Event 8 | -11/Scrapyard | Discovered new exit (range 13) 47 | -11/Scrapyard | Entered Materials 192 | -10/Materials | Discovered new exit (range 9) 301 | -10/Materials | Build established: Mutant 779 | -10/Materials | Discovered new exit (range 10) 894 | -10/Materials | Core integrity fell below 50% 905 | -10/Materials | Core integrity fell below 20% 927 | -10/Materials | Lost 7 parts (1p2n1u3w) 944 | -10/Materials | Destroyed 8 combat bots 964 | -10/Materials | Discovered new exit (range 8) 1018 | -10/Materials | Discovered new exit (range 11) 1162 | -10/Materials | Discovered new exit (range 7) 1170 | -10/Materials | Entered Subcaves 1171 | -10/Subcaves | Discovered new exit (range 10) 1172 | -10/Subcaves | Destroyed self with Grenade Launcher Last Messages --------------- 01085_ U-05 Engineer lays Concrete. 01105_ System corrupted: Component data lost. 01120_ U-05 Engineer lays Concrete. 01130_ K-01 Serf cleans the Hadron Collector. 01146_ R-06 Scavenger inserts Lgt. Ion Engine into recycling unit. 01155_ R-06 Scavenger inserts Ion Engine into recycling unit. 01160_ Hover Unit destroyed. 01160_ Destroyed Hover Unit. 01160_ T-07 Excavator destroyed. 01160_ Hadron Collector disabled. 01160_ K-01 Serf destroyed. 01160_ Grenade Launcher destroyed. 01160_ Destroyed Grenade Launcher. 01162_ EXIT=FOUND LOCATION=UNKNOWN AMBIENT_HEAT=-10 GOAL=ESCAPE 01171_ EXIT=FOUND Map ----- +----------------------------------------------------+ | ?????????????????????????????????????????????? | | ?????????????????????????????????????????????? | | ?????????????????????????????????????????????? | | ?????????????????????????????????????????????? | | ?????????????????????????????????????????????? | | ?????????????????????????????????????????????? | | ?????????????????????????????????????????????? | | ?????????????????????????????????????????????? | | ?????????????????????????????????????????????? | | ?????????????????????????????????????????????? | | ??????????????????????? ????????????????????? | | ??????????????????????? ##??????????????????? | | ??????????????????????? ??????????????????? | | ??????????????????????? ??????????????????? | | ??????????????????????? ??????????????????? | | ??????????????????????? < ??????????????????? | | ???????????????????????# g??????????????????? | | ???????????????????????# ??????????????????? | | ??????????????????????## ??????????????????? | | ?????????????????????## #??????????????????? | | ????????????????????? # #????????????????? | | ?????????????????????? ###??????????????? | | ??????????????????????? ##?????????????? | | ???????????????????????# #?????????????? | | ???????????????????????# #?????????????? | | ????????????????????#### @ #????????????????? | | ????????????# ### ##????????????????? | | ?????????????# #?????????????????? | | ?????????????# #?????????????????? | | ????????????# ##?????????????????? | | ????????????# #??????????????????? | | ????????????## ??????????????????? | | ?????????????# ## ### ?????????????????? | | ?????????????###??###??## ????????????????? | | ????????????????????????? ???????????????? | | ????????????????????????? #??????????????? | | ?????????????????????????# #??????????????? | | ??????????????????????????# #??????????????? | | ??????????????????????????? #??????????????? | | ??????????????????????????? #??????????????? | | ???????????????????????????? #??????????????? | | ?????????????????????????????????????????????? | | ?????????????????????????????????????????????? | | ?????????????????????????????????????????????? | | ?????????????????????????????????????????????? | | ?????????????????????????????????????????????? | | ?????????????????????????????????????????????? | | ?????????????????????????????????????????????? | | ?????????????????????????????????????????????? | | ?????????????????????????????????????????????? | +----------------------------------------------------+ Best States ------------- Heat Dissipation 25 Energy Generation 10 Energy Capacity 250 Matter Stores 300 Matter Capacity 300 Sight Range 16 Robot Scan Range 14 Terrain Scan Density 10 ECM Strength 1 Additional Mass Support 6 Evasion (%) 55 Item Schematics ----------------- None Robot Schematics ------------------ None Fabricated ------------ Nothing Alien Tech Used ----------------- None Achievements -------------- None Challenges ------------ None Game ------ Seed WeaponSigixClaws Manual? 0 Play Time 00:11:11 Cumulative 13.4 hours Start 2024.05.28 @ 00:58:44 End 2024.05.28 @ 01:09:47 Sessions 1 Manual Loads 0 Difficulty Rogue Special Mode None Game No. 18 Rogue 6 Adventurer 12 Explorer 0 Win Type - Total 0 Types 0/0/0/0/0/0/0/0/0 Lore% 17 Gallery% 19 Achievement% 15 Wizard Run 0 Options --------- Layout 1 ASCII 0 Keyboard 0 Movement Mouse Keybinds 0 Fullscreen 2 Font 24/Smallcaps Map View 50x35 Zoom Use 0% Tactical HUD 1 Map Filters NONE Filters NONE Steam 1 RUN: dad96f54-14ed-41db-9321-92c1ff07e52a